bitfinex-derivatives/quotes_ETHF0:USTF0_20250810
["timestamp","ask_amount","ask_price","bid_price","bid_amount"]
[1754852340946,0.6338,4237.0,4236.9,22.4153]
[1754852341144,1.546,4237.0,4236.9,22.4153]
[1754852341342,1.546,4237.0,4236.9,0.361]
[1754852341547,1.546,4237.0,4236.7,22.0743]
[1754852341548,2.01797,4237.0,4236.7,22.0743]
[1754852341749,1.1536,4236.5,4236.4,0.8773]
[1754852341950,1.546,4236.5,4236.4,22.4323]
[1754852342154,1.546,4236.5,4236.4,22.90434]
[1754852342540,0.6338,4236.9,4236.8,0.833]
[1754852342752,1.17966,4238.1,4236.8,21.914]
[1754852342753,0.59004267,4238.0,4236.8,21.914]
[1754852342953,0.9122,4238.6,4237.4,1.17982]
[1754852343251,1.546,4238.1,4238.0,1.34916]
[1754852343444,0.47179,4238.7,4238.2,0.47184]
[1754852343645,1.546,4238.3,4238.2,1.08624]
[1754852343844,0.5198,4239.0,4238.5,0.2534]
[1754852344049,1.546,4238.9,4238.8,0.8773]
[1754852344244,0.47173,4239.2,4238.8,0.361]
[1754852344552,0.92429,4237.8,4237.7,0.1759]
[1754852344747,1.13069,4237.8,4237.7,21.979]
[1754852344951,0.2664,4237.8,4237.7,22.4953]
[1754852345153,1.49809,4237.8,4237.3,0.47194]
[1754852345353,1.1536,4237.8,4237.7,0.8773]
[1754852346051,0.4478,4237.8,4237.7,0.8773]
[1754852346249,0.6136,4237.5,4237.4,21.636]
[1754852346444,1.5578,4237.5,4237.4,22.5271]
[1754852348943,1.5578,4237.5,4237.4,22.0019]
[1754852349143,1.5578,4237.5,4237.4,0.1842]
[1754852349355,1.5578,4237.5,4237.4,21.8072]
[1754852349652,1.5578,4237.5,4237.4,22.5141]
[1754852351150,1.5578,4237.5,4237.4,21.9889]
[1754852351348,0.6136,4237.2,4237.0,34.001]
[1754852351547,1.5578,4237.1,4237.0,34.5262]
[1754852351744,1.5578,4237.1,4237.0,22.5081]
[1754852351949,0.4127,4237.9,4237.0,22.98007]
[1754852352144,0.5315,4237.8,4237.1,0.2527]
[1754852352355,2.02969,4237.7,4237.6,0.8911]
[1754852354652,1.0263,4237.7,4237.6,0.8911]
[1754852355255,1.5578,4237.7,4237.6,0.8911]
[1754852355653,0.4719,4237.6,4237.4,21.619]
[1754852355856,1.5578,4237.5,4237.4,21.9849]
[1754852356057,1.5578,4237.5,4237.4,22.5101]
[1754852356257,1.5578,4237.5,4237.4,21.9849]
[1754852357358,1.5578,4237.5,4237.4,22.5101]
[1754852357558,1.5578,4237.5,4237.4,22.2574]
[1754852357858,1.5578,4237.2,4237.1,0.8911]
[1754852358056,1.5578,4237.2,4237.1,22.4991]
[1754852359255,1.5578,4237.2,4237.1,22.4931]
[1754852359456,0.6136,4236.9,4236.8,0.8911]
[1754852359657,1.5578,4236.9,4236.8,22.4921]
[1754852359961,1.5578,4236.9,4235.7,2.901]
[1754852359962,1.61709,4236.8,4236.7,21.601]
[1754852360156,0.47199,4236.8,4236.7,21.9669]
[1754852360356,0.47199,4236.9,4236.7,21.9669]
[1754852360558,0.47199,4236.9,4236.8,0.8911]
[1754852360856,0.47195,4237.3,4237.2,0.6384]
[1754852361056,1.32785,4237.3,4237.2,0.8911]
[1754852361256,1.49825,4237.3,4237.2,0.8911]
[1754852361456,2.02975,4237.3,4237.2,0.8911]
[1754852362053,2.02975,4237.3,4237.1,21.619]
[1754852362461,1.5578,4237.2,4237.1,22.5101]
[1754852364861,1.56181119,4237.2,4237.1,22.5101]
[1754852365965,0.00401119,4237.2,4237.1,22.5101]
[1754852367162,0.85991119,4237.2,4237.1,22.5101]
[1754852368570,1.12101119,4237.2,4237.1,22.5101]
[1754852369269,1.29141119,4237.2,4237.1,22.5101]
[1754852369468,1.56181119,4237.2,4237.1,22.5101]
[1754852370066,1.03031119,4237.2,4237.1,22.5101]
[1754852370565,1.56181119,4237.2,4237.1,22.5101]
[1754852370960,1.50226119,4237.2,4237.1,21.619]
[1754852371163,1.76336119,4237.2,4237.1,21.619]
[1754852371468,1.56181119,4237.2,4237.1,21.619]
[1754852371673,1.56181119,4237.2,4237.1,22.0757]
[1754852372667,2.03376119,4237.2,4237.1,22.3284]
[1754852373068,1.56181119,4237.2,4237.1,22.98206]
[1754852373468,2.03376119,4237.2,4237.1,22.5101]
[1754852373676,2.03376119,4237.2,4237.1,21.619]
[1754852374167,0.00401119,4237.2,4237.1,21.9849]
[1754852374469,1.56181119,4237.2,4237.1,22.5101]
[1754852374671,0.26881119,4237.2,4237.1,22.5101]
[1754852374872,0.00401119,4237.2,4237.1,22.5101]
[1754852377072,0.65361119,4237.2,4237.1,22.5101]
[1754852377273,0.00401119,4237.2,4237.1,22.5101]
[1754852377566,1.99791,4237.7,4237.6,0.9251]
[1754852377770,1.526,4237.7,4237.6,0.9251]
[1754852380269,0.3868,4237.7,4237.6,0.9251]
[1754852380574,1.61109,4237.8,4237.7,0.9251]
[1754852380965,0.47189,4237.8,4237.7,1.397]
[1754852381169,1.61108,4237.9,4237.8,0.9251]
[1754852381675,1.99788,4237.9,4237.8,0.9251]
[1754852383273,0.47188,4237.9,4237.8,0.9251]
[1754852383475,1.38098,4237.9,4237.8,0.9251]
[1754852383675,1.1827,4237.9,4237.8,0.9251]
[1754852383865,1.526,4237.9,4237.8,0.9251]
[1754852384273,1.526,4237.9,4237.8,0.3714]
[1754852384675,1.526,4237.9,4237.8,0.9251]
[1754852385272,1.1392,4238.2,4238.1,0.3714]
[1754852385472,1.1392,4238.2,4238.1,0.1851]
[1754852385672,0.6061,4238.0,4237.9,0.84327]
[1754852385877,1.526,4238.0,4237.9,1.39697]
[1754852386575,1.07798,4237.9,4237.8,22.02688]
[1754852386767,1.99788,4237.9,4237.8,21.555]
[1754852387778,1.07798,4237.9,4237.7,0.47189]
[1754852387975,1.078,4237.7,4237.6,0.657]
[1754852388279,1.078,4237.7,4237.5,22.02592]
[1754852388670,1.526,4237.6,4237.5,22.21102]
[1754852388876,1.526,4237.6,4237.5,22.95102]
[1754852390484,0.2628,4237.7,4237.6,1.39701]
[1754852391076,0.6496,4237.7,4237.6,1.39701]
[1754852391281,1.526,4238.0,4237.9,1.39698]
[1754852392775,0.8797,4238.4,4238.3,0.47183]
[1754852393279,1.526,4238.4,4238.3,0.47183]
[1754852397880,1.526,4238.4,4238.3,1.39693]
[1754852398481,1.526,4238.4,4238.3,1.12303]
[1754852399080,1.3561,4238.3,4238.2,0.47184]
[1754852399278,1.526,4238.3,4238.2,0.47184]
[1754852400083,1.526,4238.3,4238.2,1.39694]
[1754852400278,0.2628,4238.3,4238.2,1.39694]
[1754852400473,1.2665,4238.3,4238.2,1.39694]
[1754852400679,1.0931,4238.3,4238.2,1.39694]
[1754852400890,0.8195,4238.3,4238.2,1.39694]
[1754852401588,1.526,4238.3,4238.2,1.39694]
[1754852401976,1.526,4238.3,4238.2,0.47184]
[1754852402580,1.526,4238.3,4238.2,0.84324]
[1754852402780,1.526,4238.3,4238.2,1.39694]
[1754852403281,1.0933,4238.2,4238.1,0.47186]
[1754852403487,1.526,4238.2,4238.1,0.47186]
[1754852403679,2.27709375,4238.2,4238.1,0.47186]
[1754852404285,2.27709375,4238.2,4237.6,1.45958]
[1754852404286,2.74895375,4238.2,4238.0,0.47187]
[1754852404586,1.526,4238.1,4238.0,0.47187]
[1754852405985,1.526,4238.1,4238.0,0.93247]
[1754852406188,0.8343,4238.3,4238.2,0.7263]
[1754852406484,0.8343,4238.3,4238.2,1.38315]
[1754852409383,1.1058,4238.3,4238.2,1.38315]
[1754852410985,1.5324,4238.3,4238.2,1.38315]
[1754852411385,1.004,4238.3,4238.2,1.38315]
[1754852412389,1.2755,4238.3,4238.2,1.38315]
[1754852412588,1.5324,4238.3,4238.2,1.38315]
[1754852414689,1.5324,4238.3,4238.2,0.47185]
[1754852414894,1.5324,4238.3,4238.2,1.19815]
[1754852415186,1.5324,4238.3,4238.2,0.47185]
[1754852415585,0.6009,4237.5,4237.4,22.9004]
[1754852415788,1.5324,4237.5,4237.4,23.0854]
[1754852415990,1.5324,4237.5,4237.4,1.5574]
[1754852416690,1.5324,4237.5,4237.4,0.47193]
[1754852416889,1.5324,4237.4,4237.3,0.47194]
[1754852417683,1.5324,4237.4,4237.3,2.02934]
[1754852418080,1.0912,4237.7,4237.6,1.09081]
[1754852418285,1.004,4237.7,4237.6,2.02931]
[1754852418486,1.5324,4238.1,4238.0,1.38317]
[1754852418685,1.5324,4238.1,4238.0,0.47187]
[1754852418686,2.00425,4238.1,4238.0,0.47187]
[1754852418888,1.5324,4238.1,4238.0,0.47187]
[1754852419389,1.5324,4237.9,4237.8,0.47188]
[1754852419590,2.28349375,4237.9,4237.8,0.47188]
[1754852421093,1.5324,4237.9,4237.8,1.38318]
[1754852421392,1.3627,4238.2,4238.1,1.77434]
[1754852421590,1.5324,4238.2,4238.1,1.38314]
[1754852422191,1.5324,4238.2,4238.1,0.83584]
[1754852423691,1.5324,4238.2,4238.1,0.47184]
[1754852423993,1.5324,4237.9,4237.8,0.47189]
[1754852424290,1.5324,4237.9,4237.8,2.02929]
[1754852424491,1.5324,4237.9,4237.8,1.63809]
[1754852424888,1.3627,4237.9,4237.8,1.63809]
[1754852425192,1.5324,4237.9,4237.8,2.02929]
[1754852427697,1.5324,4237.9,4237.8,0.47189]
[1754852428592,1.5324,4237.8,4237.7,0.47189]
[1754852428990,1.0856,4237.6,4237.5,0.2717]
[1754852429192,1.34432,4237.5,4237.4,0.47193]
[1754852429389,2.00432,4237.5,4237.4,0.47193]
[1754852429797,1.5324,4237.5,4237.4,0.47193]
[1754852429997,1.5324,4237.5,4237.4,1.77443]
[1754852430199,1.5324,4237.5,4237.4,2.02933]
[1754852433596,1.5324,4237.5,4236.8,1.18]
[1754852433805,1.5324,4236.8,4236.7,1.1662]
[1754852434300,1.5324,4236.8,4236.7,1.5574]
[1754852435901,1.004,4236.8,4236.7,1.5574]
[1754852436101,0.3954,4237.0,4236.9,0.6098]
[1754852436301,0.3954,4237.0,4236.9,1.54]
[1754852436605,1.5698,4237.0,4236.9,1.54]
[1754852438111,0.6323,4237.0,4236.9,1.54]
[1754852438399,0.4595,4237.0,4236.9,1.54]
[1754852439098,0.8549,4237.0,4236.9,1.54]
[1754852439504,1.5698,4237.0,4236.9,1.54]
[1754852440105,1.0277,4237.0,4236.9,1.54]
[1754852441002,1.3011,4237.0,4236.9,1.54]
[1754852441401,1.5698,4237.0,4236.9,1.54]
[1754852443011,2.04179,4236.9,4236.8,1.33619]
[1754852443202,1.17996,4237.0,4236.5,0.5157]
[1754852443510,1.5698,4236.2,4236.1,2.01208]
[1754852444015,1.3011,4236.2,4236.1,2.01208]
[1754852445102,1.0277,4236.2,4236.1,2.01208]
[1754852445511,1.5698,4236.2,4236.1,2.01208]
[1754852446111,1.0277,4236.2,4236.1,2.01208]
[1754852446312,1.5698,4236.2,4236.1,2.01208]
[1754852446502,1.2964,4236.5,4236.4,0.47204]
[1754852446707,1.5698,4236.5,4236.4,2.01204]
[1754852448709,1.1283,4236.5,4236.4,2.01204]
[1754852448920,1.5698,4236.8,4236.7,2.01201]
[1754852450120,1.5698,4236.8,4236.7,1.54]
[1754852451316,1.5698,4236.8,4236.7,0.6083]
[1754852451618,1.5698,4236.8,4236.7,0.8642]
[1754852451821,1.5698,4236.8,4236.7,1.2787]
[1754852457818,1.10433,4236.5,4236.4,0.6083]
[1754852458023,2.04183,4236.5,4236.4,1.2787]
[1754852459519,2.04183,4236.5,4236.4,0.6083]
[1754852459718,1.5698,4236.2,4236.1,0.8642]
[1754852459919,0.93163,4235.7,4235.6,0.6098]
[1754852460223,1.32703,4235.7,4235.6,1.54]
[1754852460613,0.5421,4235.9,4235.7,1.08192]
[1754852460614,0.47212,4235.8,4235.7,1.08192]
[1754852460813,0.47212,4235.8,4235.7,2.01212]
[1754852461923,0.47212,4235.8,4235.7,1.54]
[1754852462236,0.86752,4235.8,4235.7,1.54]
[1754852463123,0.3954,4235.8,4235.7,1.54]
[1754852463627,1.86909,4236.0,4235.9,1.54]
[1754852465227,2.04189,4236.0,4235.9,1.54]
[1754852475436,2.01243,4235.6,4235.5,1.5608]
[1754852475624,0.47217,4235.3,4235.2,0.47217]
[1754852475824,1.5403,4235.3,4235.2,2.03297]
[1754852476131,0.47219,4235.1,4234.9,0.73851]
[1754852476331,1.08429,4235.1,4235.0,1.5608]
[1754852476831,1.1862,4235.1,4234.3,36.12034004]
[1754852477031,2.01248,4235.2,4235.1,0.1684]
[1754852477537,2.01254,4234.6,4234.5,1.5608]
[1754852481136,2.01254,4234.6,4234.5,0.8774]
[1754852481339,2.01254,4234.6,4234.5,0.1684]
[1754852481539,2.01254,4234.6,4234.5,0.425]
[1754852481741,2.01254,4234.6,4234.5,1.2921]
[1754852482735,2.01254,4234.6,4234.5,1.5608]
[1754852483229,0.47224,4234.6,4234.5,1.5608]
[1754852483434,0.47223,4234.8,4234.7,1.5608]
[1754852484138,0.47221,4235.0,4234.8,2.03302]
[1754852484437,0.47221,4235.0,4234.9,1.5608]
[1754852484639,0.4721,4235.9,4235.6,0.47213]
[1754852484836,1.2899,4235.9,4235.8,1.5608]
[1754852485235,1.5675,4235.9,4235.8,1.5608]
[1754852485539,2.0124,4235.9,4235.8,1.5608]
[1754852485739,2.0124,4235.9,4235.8,2.03291]
[1754852486240,1.5403,4235.9,4235.8,2.03291]
[1754852486440,0.258,4235.9,4235.8,2.03291]
[1754852487340,0.8178,4235.9,4235.8,2.03291]
[1754852488841,0.8178,4235.9,4235.8,1.5608]
[1754852489337,1.5403,4235.9,4235.8,1.5608]
[1754852490736,1.5403,4235.9,4235.8,2.03291]
[1754852491643,0.3915,4235.9,4234.4,2.12234004]
[1754852491832,0.3915,4235.9,4233.3,2.901]
[1754852491833,1.99031,4234.0,4233.6,0.2663]
[1754852492135,1.2627,4233.7,4233.6,1.1181]
[1754852492535,1.2627,4233.7,4233.6,1.3042]
[1754852494539,1.2627,4233.7,4233.6,1.532]
[1754852496138,1.2627,4233.7,4232.2,1.93237375]
[1754852496139,0.927,4233.3,4233.2,0.4535]
[1754852496339,1.0228,4233.3,4233.2,1.5222]
[1754852496539,0.4546,4233.3,4233.2,1.5222]
[1754852496745,0.7138,4233.3,4233.2,1.5222]
[1754852497847,0.47237,4233.5,4233.2,1.99459]
[1754852498046,0.47237,4233.5,4233.4,0.635]
[1754852498254,0.47237,4233.5,4233.4,1.5222]
[1754852498446,0.73157,4233.5,4233.4,1.5222]
[1754852499347,0.90747,4233.5,4233.4,1.5222]
[1754852499541,1.57757,4233.5,4233.4,1.5222]
[1754852499738,1.75437,4233.5,4233.4,1.5222]
[1754852501147,1.282,4233.5,4233.4,1.5222]
[1754852501544,1.1052,4233.5,4233.4,1.5222]
[1754852503848,1.282,4233.5,4233.4,1.5222]
[1754852511152,0.3914,4234.2,4233.4,0.6104]
[1754852511362,0.3914,4234.2,4232.6,1.18116]
[1754852511363,0.3914,4234.4,4234.2,0.47229]
[1754852511558,1.7542,4235.0,4234.9,0.4535]
[1754852511755,1.7542,4235.0,4234.9,1.1124]
[1754852511957,2.01,4235.0,4234.9,0.7303]
[1754852512254,2.01,4235.0,4234.9,0.4549]
[1754852512556,2.01,4235.0,4234.9,0.2768]
[1754852519055,2.01,4235.0,4234.9,0.4549]
[1754852521265,1.7542,4235.0,4234.9,1.5222]
[1754852523862,1.5774,4235.0,4234.9,1.5222]
[1754852524069,1.186,4235.0,4234.9,1.5222]
[1754852524367,1.5774,4235.0,4234.9,1.5222]
[1754852525063,1.7542,4235.0,4234.9,1.5222]
[1754852525762,0.7138,4235.0,4234.9,1.2939]
[1754852525964,0.276,4235.2,4235.1,0.1692]
[1754852526269,0.276,4235.2,4235.1,1.5166]
[1754852527269,1.91443372,4235.7,4235.6,1.2887]
[1754852527461,1.76273,4235.7,4235.6,1.5166]
[1754852528868,2.01813,4235.7,4235.6,1.5166]
[1754852529271,1.76273,4235.7,4235.6,1.5166]
[1754852530069,1.2906,4235.7,4235.6,1.5166]
[1754852530473,0.91931,4235.9,4235.8,0.6098]
[1754852530669,1.58351,4235.9,4235.8,1.5166]
[1754852531172,1.1114,4235.9,4235.8,1.5166]
[1754852531871,1.2906,4235.9,4235.8,1.5166]
[1754852532669,1.546,4235.9,4235.8,1.1195]
[1754852532867,2.01813,4235.6,4235.5,0.1802]
[1754852533062,2.76922375,4235.6,4235.5,0.1802]
[1754852533472,2.76922375,4235.6,4235.5,1.1195]
[1754852533667,2.76922375,4235.6,4235.5,0.2746]
[1754852533873,0.6264,4235.4,4235.3,1.33126]
[1754852534072,1.2906,4235.4,4235.3,1.59166]
[1754852534266,1.2906,4235.4,4235.3,1.81956]
[1754852534668,1.2906,4235.4,4235.3,1.98876]
[1754852535976,1.2906,4235.4,4235.3,1.5166]
[1754852542069,1.22323375,4235.6,4235.3,1.5166]
[1754852542379,0.15173828,4235.8,4235.7,1.08192]
[1754852542581,0.4721,4236.0,4235.8,1.5166]
[1754852542582,0.15173828,4235.9,4235.8,1.5166]
[1754852542877,1.00073828,4235.9,4235.8,1.5166]
[1754852543076,1.26313828,4235.9,4235.8,1.5166]
[1754852543680,1.44233828,4235.9,4235.8,1.5166]
[1754852543981,1.44233828,4235.9,4235.8,1.98871]
[1754852544183,1.44233828,4235.9,4235.8,1.5166]
[1754852545881,1.44244676,4235.9,4235.8,1.5166]
[1754852546473,1.44244676,4235.9,4235.8,1.98871]
[1754852547182,1.44244676,4235.9,4235.8,1.5166]
[1754852547777,1.2906,4235.9,4235.8,1.5166]
[1754852549379,1.18973,4235.6,4235.5,0.7152]
[1754852549585,2.01813,4235.6,4235.5,1.1195]
[1754852549786,2.01813,4235.6,4235.5,0.7152]
[1754852550087,1.2906,4235.1,4235.0,1.5166]
[1754852550284,1.2906,4235.1,4235.0,1.9888]
[1754852551779,1.2906,4235.1,4235.0,1.2887]
[1754852551974,1.546,4235.1,4235.0,1.2887]
[1754852552582,1.546,4235.1,4235.0,1.5166]
[1754852552981,1.546,4235.1,4235.0,1.2887]
[1754852553187,1.546,4235.1,4235.0,0.2746]
[1754852553386,1.546,4235.1,4235.0,0.4548]
[1754852553694,1.546,4235.1,4235.0,1.1195]
[1754852554377,1.546,4235.1,4235.0,1.3474]
[1754852554687,1.2906,4235.1,4235.0,1.3474]
[1754852554987,1.2906,4235.1,4235.0,1.5166]
[1754852556189,1.546,4235.1,4235.0,1.5166]
[1754852557486,1.2906,4235.1,4235.0,1.5166]
[1754852559583,1.00649375,4235.4,4235.3,1.4915]
[1754852559584,1.01329375,4235.4,4235.3,1.4915]
[1754852559781,0.7194,4235.4,4235.3,1.4915]
[1754852559981,1.1014,4235.4,4235.3,1.4915]
[1754852560181,1.2698,4235.4,4235.3,1.4915]
[1754852562792,0.65513,4235.7,4234.4,2.06276]
[1754852562989,1.19153,4235.7,4235.6,0.6091]
[1754852563189,1.57353,4235.7,4235.6,1.4912]
[1754852563492,1.1014,4235.7,4235.6,1.4912]
[1754852563694,1.2698,4235.7,4235.6,1.4912]
[1754852567991,0.73432,4235.8,4235.7,1.4912]
[1754852568193,0.2622,4235.8,4235.7,1.96332]
[1754852568697,1.18909584,4236.2,4236.1,1.0537]
[1754852568894,1.31127,4236.2,4236.1,1.2238]
[1754852569196,1.63169584,4236.2,4236.1,1.4912]
[1754852569394,1.74187,4236.2,4236.1,1.4912]
[1754852569592,1.89389584,4236.2,4236.1,1.4912]
[1754852569792,1.74187,4236.2,4236.1,1.4912]
[1754852569995,1.89389584,4236.2,4236.1,1.4912]
[1754852570196,1.74187,4236.2,4236.1,1.4912]
[1754852570396,1.89389584,4236.2,4236.1,1.4912]
[1754852570696,1.74187,4236.2,4236.1,1.4912]
[1754852570890,1.89389584,4236.2,4236.1,1.4912]
[1754852571091,1.74187,4236.2,4236.1,1.4912]
[1754852571791,1.2698,4236.2,4236.1,1.4912]
[1754852571997,0.4452,4236.4,4236.3,1.4912]
[1754852573195,1.2698,4236.4,4236.3,1.4912]
[1754852577804,1.42160978,4236.4,4236.3,1.4912]
[1754852580603,0.87120978,4236.4,4236.3,1.4912]
[1754852580914,0.15180978,4236.5,4236.4,1.96324]
[1754852581108,0.41400978,4236.5,4236.4,1.96324]
[1754852581308,0.2622,4236.5,4236.4,1.96324]
[1754852582510,1.25320978,4237.3,4237.2,0.8372]
[1754852582711,1.25320978,4237.3,4237.2,1.4912]
[1754852582910,1.42160978,4237.3,4237.2,1.4912]
[1754852583911,1.2698,4237.3,4237.2,1.4912]
[1754852584111,1.42160978,4237.3,4237.2,1.4912]
[1754852584312,1.2698,4237.3,4237.2,1.4912]
[1754852584710,1.42160978,4237.3,4237.2,1.4912]
[1754852585008,1.5252,4237.3,4237.2,1.09]
[1754852585208,1.67700978,4237.3,4237.2,1.09]
[1754852585609,0.6182,4236.9,4236.6,0.47202]
[1754852585811,0.6182,4236.9,4236.8,0.174]
[1754852586001,0.6182,4236.9,4236.8,1.0978]
[1754852586206,1.2816,4236.9,4236.8,1.0978]
[1754852586914,1.2816,4236.9,4236.8,1.499]
[1754852588511,0.4445,4236.9,4236.8,1.499]
[1754852588912,0.3964,4237.1,4236.9,0.47199]
[1754852589218,1.2816,4237.1,4237.0,1.499]
[1754852589518,0.4445,4237.1,4237.0,1.499]
[1754852590415,1.0965,4237.1,4237.0,1.499]
[1754852590713,0.7001,4237.1,4237.0,1.499]
[1754852590915,0.267,4237.1,4237.0,1.499]
[1754852591615,1.0965,4237.1,4237.0,1.499]
[1754852591815,1.2816,4237.1,4237.0,1.499]
[1754852592112,1.2816,4237.1,4237.0,0.2559]
[1754852592313,1.2816,4237.0,4236.9,0.47199]
[1754852592516,1.5369,4237.0,4236.9,1.56979]
[1754852593409,1.2816,4237.0,4236.9,1.56979]
[1754852593618,1.2816,4237.4,4237.3,1.74314]
[1754852593810,1.2816,4237.4,4237.3,1.97094]
[1754852594512,0.7001,4237.4,4237.3,1.97094]
[1754852596222,1.0965,4237.4,4237.3,1.97094]
[1754852597910,0.47189,4237.8,4237.6,0.47191]
[1754852598112,1.17956,4238.5,4237.6,1.97091]
[1754852598113,1.2816,4237.7,4237.6,1.97091]
[1754852598813,1.5369,4237.7,4237.6,1.499]
[1754852599519,1.2816,4237.7,4237.6,1.499]
[1754852603118,1.5369,4237.7,4237.6,1.0978]
[1754852603524,2.28799375,4237.7,4237.6,0.4299]
[1754852605221,2.28799375,4237.7,4237.1,0.2559]
[1754852605222,0.9187,4237.2,4237.1,0.2559]
[1754852605523,2.28799375,4237.2,4237.1,0.4299]
[1754852606118,0.6182,4236.9,4236.8,0.6898]
[1754852606322,0.4331,4236.3,4236.2,0.6073]
[1754852606625,1.0965,4236.3,4236.2,1.499]
[1754852607120,0.47197,4237.1,4236.9,0.2278]
[1754852607327,1.30147,4237.1,4237.0,0.6073]
[1754852607521,1.48657,4237.1,4237.0,0.8351]
[1754852607721,2.00887,4237.1,4237.0,1.2712]
[1754852608024,1.75357,4237.1,4237.0,1.499]
[1754852608519,1.2816,4237.1,4237.0,1.499]
[1754852609325,1.2816,4236.5,4236.4,1.97103]
[1754852613227,1.2816,4237.0,4236.9,1.97099]
[1754852615328,1.2816,4237.0,4236.9,1.499]
[1754852615829,1.2816,4237.0,4236.9,1.2712]
[1754852616030,1.537,4237.0,4236.9,1.2712]
[1754852617229,1.2816,4237.0,4236.9,1.4991]
[1754852622223,0.47201,4236.7,4236.5,0.47203]
[1754852622430,1.36551,4236.7,4236.6,0.2688]
[1754852622933,2.02531,4236.7,4236.6,0.2688]
[1754852623130,2.02534,4236.4,4236.3,0.91975]
[1754852623329,1.76994,4236.4,4236.3,2.00965]
[1754852624223,2.02534,4236.4,4236.3,1.1339]
[1754852624429,2.02534,4236.4,4236.3,0.7184]
[1754852624631,1.5533,4236.4,4236.3,0.7184]
[1754852624929,1.2979,4236.4,4236.3,1.5376]
[1754852625830,1.2979,4236.4,4236.1,0.47207]
[1754852626136,1.2979,4236.4,4235.7,0.8533]
[1754852626137,1.11021,4235.8,4235.7,0.8533]
[1754852626431,1.77001,4235.8,4235.7,0.1789]
[1754852626726,1.77001,4235.8,4235.7,1.1339]
[1754852626928,2.02541,4235.8,4235.7,1.1339]
[1754852627122,1.36496,4235.4,4235.3,0.6254]
[1754852627327,1.2979,4235.4,4235.3,1.5376]
[1754852630539,1.77006,4235.4,4235.3,1.5376]
[1754852632140,1.51537,4235.3,4235.2,1.1339]
[1754852632335,1.51537,4235.3,4235.2,1.5376]
[1754852632536,1.77007,4235.3,4235.2,1.5376]
[1754852633037,1.2979,4235.3,4235.2,1.5376]
[1754852633236,0.2554,4235.5,4235.4,1.5376]
[1754852633237,0.90925,4235.5,4235.4,1.5376]
[1754852633637,1.58585,4235.5,4235.4,1.5376]
[1754852633839,1.77005,4235.5,4235.4,1.5376]
[1754852638047,1.13195,4235.5,4235.4,1.5376]
[1754852638849,1.31435,4235.5,4235.4,1.5376]
[1754852639148,1.77005,4235.5,4235.4,1.5376]
[1754852640054,1.77009,4235.1,4235.0,1.1339]
[1754852640253,2.02579,4235.1,4235.0,1.1339]
[1754852640448,1.77009,4235.1,4235.0,1.5379]
[1754852642345,0.1824,4235.1,4235.0,1.5379]
[1754852642550,0.4371,4235.1,4235.0,1.5379]
[1754852643351,0.8422,4235.1,4235.0,1.5379]
[1754852643756,1.1137,4235.1,4235.0,1.5379]
[1754852643950,1.2979,4235.1,4235.0,1.5379]
[1754852644358,1.77014,4234.7,4234.6,1.0409]
[1754852644758,2.02584,4234.7,4234.6,0.8651]
[1754852645061,2.02584,4234.7,4234.4,0.2282]
[1754852645062,0.9155,4234.7,4234.2,0.47229]
[1754852645358,1.2979,4234.3,4234.2,2.01019]
[1754852647062,1.2858,4234.3,4234.2,1.5379]
[1754852650963,0.1691,4234.0,4233.9,0.74512]
[1754852651160,1.5429,4234.0,4233.9,0.8652]
[1754852651460,1.2877,4234.0,4233.9,1.0396]
[1754852651659,1.2877,4234.0,4233.9,0.7181]
[1754852651859,1.5429,4234.0,4233.9,0.7181]
[1754852652164,1.5429,4234.0,4233.9,1.138]
[1754852652662,1.5429,4234.0,4233.9,1.3657]
[1754852655663,1.2877,4234.0,4233.9,1.5401]
[1754852658569,0.7105,4234.0,4233.9,1.5401]
[1754852658771,1.115,4234.0,4233.9,1.5401]
[1754852661370,0.47227,4234.4,4234.2,0.47228]
[1754852661574,0.7105,4234.3,4234.2,2.01238]
[1754852662676,1.115,4234.3,4234.2,2.01238]
[1754852662876,0.438,4234.3,4234.2,23.54438]
[1754852663177,1.2877,4234.3,4234.2,23.54438]
[1754852663866,1.5429,4234.3,4234.2,23.54438]
[1754852664073,1.5429,4234.3,4234.2,22.8444]
[1754852666580,1.5429,4234.3,4234.2,23.0721]
[1754852666975,1.2877,4234.3,4234.2,23.0721]
[1754852668571,1.5429,4234.3,4234.2,23.0721]
[1754852668979,1.5429,4234.3,4234.2,22.8444]
[1754852670384,1.2877,4234.3,4234.2,23.0721]
[1754852671478,1.5429,4234.3,4234.2,23.0721]
[1754852671685,1.5429,4234.3,4234.2,22.2501]
[1754852671887,1.2877,4233.9,4233.8,22.44863]
[1754852672185,2.01522,4233.9,4233.8,23.36903]
[1754852673084,1.5429,4233.9,4233.8,23.36903]
[1754852674285,1.2877,4233.9,4233.8,23.54343]
[1754852676285,0.7105,4233.9,4233.8,23.54343]
[1754852677588,1.1001,4233.9,4233.8,23.54343]
[1754852679284,1.2713,4233.9,4233.8,23.54343]
[1754852680088,1.1001,4233.9,4233.8,23.54343]
[1754852683892,1.2713,4233.9,4233.8,23.54343]
[1754852694597,1.2713,4233.9,4233.8,23.0711]
[1754852694798,1.527,4233.9,4233.8,23.0711]
[1754852699096,1.2713,4233.9,4233.8,23.0711]